Cogmind - Beta 13 @@@ ROGUE MODE // 2024.07.20 @ 21:24:07 Player: jimmyl Result: Self-destructed Performance ------------- Evolutions (5) 2500 Regions Visited (12) 2400 Robots Destroyed (90) 450 Value Destroyed (3345) 3345 Prototype IDs (36) 720 Alien Tech Used (0) 0 Bonus (2748) 2748 TOTAL SCORE: 12163 Bonus ------- High Alert Combat Kills 43 Follower Combat Kills 119 Aligned with FarCom 300 Met Warlord at Base 500 MAIN.C Attacked Warlord 500 Warlord Defense Kills 1286 Cogmind --------- Core Integrity 418/1000 Matter 233/300 Energy 97/100 System Corruption 1% Temperature Cool (0) Movement Core (50) Location -4/Proximity Caves Parts ------- > --- POWER (2) -------- (None) > --- PROPULSION (3) --- (None) > --- UTILITY (9) ------ Improved Terrain Scanner Improved Targeting Computer Improved Target Analyzer Advanced Target Analyzer > --- WEAPON (3) ------- (None) > --- INVENTORY (5) ---- Wheel Compact Wheel ECM Suite Improved Phase Shifter Compact Linear Accelerator Peak State ------------ > --- POWER ------------ Micro Fission Core > --- PROPULSION ------- Armored Treads Armored Treads Armored Medium Treads > --- UTILITY ---------- Heat Sink Advanced Heat Sink Small Storage Unit Improved Terrain Scanner Improved Terrain Scan Processor Improved Targeting Computer Improved Target Analyzer Advanced Target Analyzer Centrium Light Armor Plating > --- WEAPON ----------- Coil Gun Heavy Flak Cannon Compact Linear Accelerator > --- INVENTORY -------- Antimatter Reactor Light Treads Wheel Compact Wheel ECM Suite [Rating: 75] Favorites ----------- Power Micro Fission Core Engine Backup Power III Power Core Micro Fission Core Reactor Antimatter Reactor Propulsion Armored Treads Treads Armored Treads Leg Aluminum Leg Utility Small Storage Unit Device Improved Heat Sink Storage Small Storage Unit Processor Improved Targeting Computer Hackware Advanced System Shield Protection Hardened Medium Armor Plating Weapon Firepult Energy Gun Small Laser Energy Cannon Firepult Ballistic Gun Coil Gun Ballistic Cannon Compact Linear Accelerator Build | -11 -10 -10 -10 -9 -8 -7 -6 -5 -5 -5 -5 -4 ------- Run | Yrd Mat Min Exi Min Mat Fac Fac Fac Upp Upp War Pro Slots Evolved 10 | . . . . . 4 2 2 2 . . . . Power 1 | . . . . . . 1 . . . . . . Propulsion 1 | . . . . . . 1 . . . . . . Utility 7 | . . . . . 3 . 2 2 . . . . Weapon 1 | . . . . . 1 . . . . . . . Parts Attached 36 | . . 3 . 2 12 1 2 5 1 1 1 8 Power 5 | . . 1 . . 2 . . 1 . . . 1 Engine 1 | . . . . . 1 . . . . . . . Core 3 | . . 1 . . 1 . . 1 . . . . Reactor 1 | . . . . . . . . . . . . 1 Propulsion 9 | . . . . . 5 1 . 1 . . . 2 Treads 9 | . . . . . 5 1 . 1 . . . 2 Leg . | . . . . . . . . . . . . . Wheel . | . . . . . . . . . . . . . Hover . | . . . . . . . . . . . . . Flight . | . . . . . . . . . . . . . Utility 14 | . . 1 . . 3 . 2 3 1 1 . 3 Device 7 | . . 1 . . 2 . 1 2 . 1 . . Storage . | . . . . . . . . . . . . . Processor 4 | . . . . . 1 . 1 . . . . 2 Hackware 1 | . . . . . . . . 1 . . . . Protection 2 | . . . . . . . . . 1 . . 1 Artifact . | . . . . . . . . . . . . . Weapon 8 | . . 1 . 2 2 . . . . . 1 2 Energy Gun 3 | . . 1 . 1 1 . . . . . . . Energy Cannon 2 | . . . . 1 1 . . . . . . . Ballistic Gun 1 | . . . . . . . . . . . . 1 Ballistic Cannon 2 | . . . . . . . . . . . 1 1 Launcher . | . . . . . . . . . . . . . Special Weapon . | . . . . . . . . . . . . . Impact Weapon . | . . . . . . . . . . . . . Slashing Weapon . | . . . . . . . . . . . . . Piercing Weapon . | . . . . . . . . . . . . . Special Melee Weapon . | . . . . . . . . . . . . . Unidentified Prototypes 3 | . . . . . . . . 1 . . . 2 Parts Lost 25 | . . 1 . . 3 . . 1 1 2 3 14 Power 6 | . . . . . 2 . . . . 1 1 2 Propulsion 6 | . . . . . 1 . . . . 1 . 4 Utility 8 | . . . . . . . . . 1 . 1 6 Weapon 5 | . . 1 . . . . . 1 . . 1 2 Highest Loss Streak 4 | . . 1 . . 1 . . 1 1 1 3 4 To Critical Strikes . | . . . . . . . . . . . . . Average Slot Usage (%) 81 | . 85 90 100 88 79 84 86 81 83 82 80 72 Engine 2 | . 14 8 . . 3 . . . . . 3 . Core 6 | . . 5 14 14 4 7 6 9 11 7 5 3 Treads 12 | . . . . . 14 23 20 17 17 16 11 10 Leg 3 | . 28 28 28 28 3 . . . . . . . Device 23 | . . 4 14 14 20 23 26 23 26 27 28 14 Storage 6 | . 14 14 14 14 9 7 6 5 5 5 5 4 Processor 10 | . . . . . 8 7 13 11 11 11 11 19 Protection 3 | . . . . . . . . . 2 5 5 3 Energy Gun 4 | . 28 28 28 7 9 7 6 2 . . . . Energy Cannon 4 | . . . . 10 6 7 6 5 5 5 4 . Ballistic Cannon 1 | . . . . . . . . . . . . 8 Naked Turns . | . . . . . . . . . . . . . Heaviest Build 53 | 13 13 13 13 33 40 40 41 46 53 53 48 35 Greatest Support 67 | 20 20 20 20 20 40 60 60 60 60 60 40 67 Greatest Overweight (x) 3 | . . . . 1 1 . . . . 1 1 3 Average Overweight (x) . | . . . . . . . . . . . . . Largest Inventory Capacity 8 | . 8 8 8 8 8 8 8 8 8 8 8 8 Average Capacity 7 | . 8 8 8 8 8 8 8 8 8 8 8 7 Most Carried 8 | . 6 8 8 8 8 6 5 6 6 6 8 7 Average Carried 5 | . 6 6 6 6 5 6 4 4 4 5 5 4 Final Capacity 8 | 8 8 8 8 8 8 8 8 8 8 8 8 5 Final Carried 8 | 6 6 6 8 7 7 6 5 4 5 5 8 5 Class Distribution -------------------- 50% | Mutant 21% | Commander-Mutant 18% | Skirmisher 4% | Scavenger-Gunner 4% | Scavenger-Mutant Dominant Class ---------------- Mutant | -10/Mines Mutant | -10/Exiles Mutant | -9/Mines Skirmisher | -8/Materials Skirmisher | -7/Factory Skirmisher | -6/Factory Skirmisher | -5/Factory Mutant | -5/Upper Caves Mutant | -5/Upper Caves Commander-Mutant | -5/Warlord Scavenger-Gunner | -4/Proximity Caves Resources | -11 -10 -10 -10 -9 -8 -7 -6 -5 -5 -5 -5 -4 ----------- Run | Yrd Mat Min Exi Min Mat Fac Fac Fac Upp Upp War Pro Matter Collected 819 | 200 . 30 . . 110 18 . . 82 50 . 329 Remotely . | . . . . . . . . . . . . . Salvage Created 3692 | . . 126 . 186 938 75 . 139 483 681 621 443 Parts 103 | . . 10 . 13 30 3 . 7 2 6 14 18 Haulers Intercepted . | . . . . . . . . . . . . . Recyclers Shooed 1 | . . . . . 1 . . . . . . . Parts Field Recycled . | . . . . . . . . . . . . . Retrieved Matter . | . . . . . . . . . . . . . Parts Self-Destructed 28 | . . . . . . . . . 3 8 . 17 Prevented . | . . . . . . . . . . . . . Kills | -11 -10 -10 -10 -9 -8 -7 -6 -5 -5 -5 -5 -4 ------- Run | Yrd Mat Min Exi Min Mat Fac Fac Fac Upp Upp War Pro Combat Hostiles Destroyed 76 | . . 4 . 7 17 3 . 5 7 12 10 11 Guns 10 | . . 4 . 3 1 . . . . . . 2 Cannons 14 | . . . . 1 2 . . 1 . 1 . 9 AOE 31 | . . . . 3 10 3 . 4 3 6 2 . Classes Destroyed 19 | . . 2 . 3 6 . . . 1 2 3 2 Worker 6 | . . . . 1 4 . . 1 . . . . Builder 2 | . . . . 1 1 . . . . . . . Tunneler 1 | . . . . . 1 . . . . . . . Recycler 3 | . . . . 1 2 . . . . . . . Operator 1 | . . . . . 1 . . . . . . . Drone 1 | . . . . . . . . . . . . 1 Watcher 1 | . . . . . 1 . . . . . . . Swarmer 30 | . . 2 . 7 7 3 . 5 . 2 2 2 Grunt 21 | . . 2 . . 3 . . . 7 5 2 2 Brawler 2 | . . . . . 1 . . . . 1 . . Duelist 1 | . . . . . . . . . . 1 . . Protector 1 | . . . . . . . . . . . 1 . Sentry 7 | . . . . . 5 . . . . 1 . 1 Hunter 8 | . . . . . . . . . . 2 2 4 Programmer 1 | . . . . . . . . . . . . 1 Heavy 1 | . . . . . 1 . . . . . . . Behemoth 2 | . . . . . . . . . . . 2 . Striker 1 | . . . . . . . . . . . 1 . Samaritan 1 | . . . . . . . . . 1 . . . Best Kill Streak 10 | . . 2 . 10 10 3 . 6 3 5 8 5 Combat Bots Only 8 | . . 2 . 7 4 3 . 5 3 5 8 5 Max Kills in Single Turn 6 | . . 1 . 6 5 2 . 4 2 2 3 1 Gunslinging . | . . . . . . . . . . . . . Exploded 3 | . . . . 3 3 2 . 3 1 2 1 . Melee . | . . . . . . . . . . . . . Uniques/NPCs Destroyed . | . . . . . . . . . . . . . Combat | -11 -10 -10 -10 -9 -8 -7 -6 -5 -5 -5 -5 -4 -------- Run | Yrd Mat Min Exi Min Mat Fac Fac Fac Upp Upp War Pro Hostile Shots Fired 332 | . . 21 . 8 42 4 . 10 8 30 39 170 Missed 104 | . . 3 . 2 12 . . 2 2 12 12 59 Damage Taken 3869 | . . 213 . 68 499 67 . 131 143 389 557 1802 Core 764 | . . 28 . . 138 16 . 23 34 26 108 391 Absorbed by Shields 265 | . . . . . . . . . . . 265 . Regen/Repaired (Parts) 217 | . . . . . . . . . . . 217 . Core Remaining (%) 91 | 100 . . . 88 74 97 100 . . . . . Volleys Fired 116 | . . 10 . 6 27 3 . 3 12 11 7 37 Largest 2 | . . 2 . 2 2 1 . 1 1 1 1 2 Hottest 313 | . . 80 . 250 313 250 . 250 250 250 250 123 Shots Fired 146 | . . 18 . 10 28 3 . 3 12 11 7 54 Gun 52 | . . 18 . 8 10 . . . . . . 16 Cannon 94 | . . . . 2 18 3 . 3 12 11 7 38 Launcher . | . . . . . . . . . . . . . Special . | . . . . . . . . . . . . . Kinetic 54 | . . . . . . . . . . . . 54 Thermal 85 | . . 11 . 10 28 3 . 3 12 11 7 . Explosive . | . . . . . . . . . . . . . Electromagnetic 7 | . . 7 . . . . . . . . . . Robot Hit Streak 12 | . . 6 . 2 8 2 . . 2 4 4 12 Robot Miss Streak 7 | . . 1 . 6 5 5 . . 7 2 2 6 Penetration Max . | . . . . . . . . . . . . . Secondary Targets 1 | . . . . 1 . . . . . . . . Max Gunslinging Chain 1 | . . . . 1 . . . . . . . . Shots Hit Robots 90 | . . 12 . 5 16 2 . . 6 8 5 36 Core Hits 179 | . . 7 . 9 42 5 . 9 22 32 32 21 Critical Kills 1 | . . . . . . . . . . . . 1 Critical Parts Destroyed . | . . . . . . . . . . . . . Critical Strikes 8 | . . . . . . . . . . . . 8 Destroy 1 | . . . . . . . . . . . . 1 Blast 7 | . . . . . . . . . . . . 7 Melee Attacks . | . . . . . . . . . . . . . Impact . | . . . . . . . . . . . . . Slashing . | . . . . . . . . . . . . . Piercing . | . . . . . . . . . . . . . Sneak Attacks . | . . . . . . . . . . . . . Combat Hostiles . | . . . . . . . . . . . . . Follow-up Attacks . | . . . . . . . . . . . . . Damage Inflicted 6479 | . . 162 . 372 1528 103 . 212 875 1132 1032 1063 Guns 533 | . . 162 . 60 104 . . . . . . 207 Cannons 1854 | . . . . 20 348 . . 75 220 189 146 856 Explosions 4092 | . . . . 292 1076 103 . 137 655 943 886 . Melee . | . . . . . . . . . . . . . Ramming . | . . . . . . . . . . . . . Kinetic 1063 | . . . . . . . . . . . . 1063 Thermal 5364 | . . 110 . 372 1528 103 . 212 875 1132 1032 . Explosive . | . . . . . . . . . . . . . Electromagnetic 52 | . . 52 . . . . . . . . . . Impact . | . . . . . . . . . . . . . Slashing . | . . . . . . . . . . . . . Piercing . | . . . . . . . . . . . . . Highest Corruption 1 | . . . . . . . . . . . . 1 Average Corruption 1 | . . . . . . . . . . . . 1 Corruption Purged . | . . . . . . . . . . . . . Corruption Blocked 8 | . . . . . . . . . . . 8 . Effects 2 | . . . . . . . . . . . . 2 Matter Fused 1 | . . . . . . . . . . . . 1 Heat Flow Errors 1 | . . . . . . . . . . . . 1 Overload Shots . | . . . . . . . . . . . . . Overflow Damage 52 | . . . . 17 7 . . . 15 2 . 11 Projectiles 15 | . . . . . 4 . . . . . . 11 Explosions 37 | . . . . 17 3 . . . 15 2 . . Melee . | . . . . . . . . . . . . . Knockbacks 8 | . . . . . . . . . . . . 8 Impact . | . . . . . . . . . . . . . Kinetic 8 | . . . . . . . . . . . . 8 Secondary . | . . . . . . . . . . . . . Self-Inflicted Damage 115 | . . . . 12 30 5 . 6 34 28 . . Shots 18 | . . . . 2 6 1 . 1 3 5 . . Rammed . | . . . . . . . . . . . . . Targets Rammed . | . . . . . . . . . . . . . Kicked . | . . . . . . . . . . . . . Crushed . | . . . . . . . . . . . . . Highest Temperature 550 | . . 184 . 412 341 264 . 276 550 546 292 70 Average Temperature 142 | . . 86 . 211 110 153 . 164 223 167 150 11 Received Heat Transfer 602 | . . 123 . . 207 . . . 45 112 4 111 Effects 8 | . . . . . . . . . 4 4 . . Shutdowns 3 | . . . . . . . . . 1 2 . . Energy Bleed 1 | . . . . . . . . . . 1 . . Interference 1 | . . . . . . . . . 1 . . . Matter Decay 1 | . . . . . . . . . . 1 . . Damage (minor) 1 | . . . . . . . . . 1 . . . Damage (major) 1 | . . . . . . . . . 1 . . . Siege Activations . | . . . . . . . . . . . . . Robots Corrupted . | . . . . . . . . . . . . . Combat Hostiles . | . . . . . . . . . . . . . Parts Fried . | . . . . . . . . . . . . . Impact Corruptions . | . . . . . . . . . . . . . Robots Melted 23 | . . . . . 6 . . . 4 5 8 . Combat Hostiles 21 | . . . . . 4 . . . 4 5 8 . Parts Melted 100 | . . . . 2 29 1 . 1 14 29 24 . Heat Transferred 25931 | . . 250 . 885 7757 560 . 1120 4480 5680 5199 . Parts Sabotaged . | . . . . . . . . . . . . . Parts Stolen . | . . . . . . . . . . . . . Parts Stripped . | . . . . . . . . . . . . . Power Chain Reactions . | . . . . . . . . . . . . . Alert | -11 -10 -10 -10 -9 -8 -7 -6 -5 -5 -5 -5 -4 ------- Run | Yrd Mat Min Exi Min Mat Fac Fac Fac Upp Upp War Pro Peak Influence 571 | . . 120 . 219 571 330 176 195 . . . . Initial 259 | . . . . . 85 259 161 86 . . . . Average 203 | . . 66 . 146 291 287 161 128 . . . . Maximum Alert Level 2 | . . . . 1 2 1 . . . . . . Low Security (%) 61 | . 100 100 . 46 36 . 100 100 . . . . Level 1 27 | . . . . 53 34 100 . . . . . . Level 2 11 | . . . . . 29 . . . . . . . Level 3 . | . . . . . . . . . . . . . Level 4 . | . . . . . . . . . . . . . Level 5 . | . . . . . . . . . . . . . High Security . | . . . . . . . . . . . . . Max Security . | . . . . . . . . . . . . . Squads Dispatched 2 | . . . . . 2 . . . . . . . Investigation . | . . . . . . . . . . . . . Extermination . | . . . . . . . . . . . . . Reinforcement 2 | . . . . . 2 . . . . . . . Assault . | . . . . . . . . . . . . . Garrison . | . . . . . . . . . . . . . Intercept . | . . . . . . . . . . . . . Searches Triggered . | . . . . . . . . . . . . . Construction Impeded 1 | . . . . . 1 . . . . . . . Haulers Reinforced . | . . . . . . . . . . . . . Active Scanning Responses . | . . . . . . . . . . . . . Cargo Convoy Interrupts . | . . . . . . . . . . . . . Stealth | -11 -10 -10 -10 -9 -8 -7 -6 -5 -5 -5 -5 -4 --------- Run | Yrd Mat Min Exi Min Mat Fac Fac Fac Upp Upp War Pro Distress Signals 4 | . . . . . 3 . . . . . 1 . Communications Jammed . | . . . . . . . . . . . . . Distress Signals . | . . . . . . . . . . . . . Times Spotted 100 | . . 5 . 4 27 1 1 5 7 13 23 14 Peak Tracking Total 14 | . . 3 . 4 6 1 1 5 5 5 14 4 Tactical Retreats 3 | . . 1 . . 2 . . . . . . . Traps | -11 -10 -10 -10 -9 -8 -7 -6 -5 -5 -5 -5 -4 ------- Run | Yrd Mat Min Exi Min Mat Fac Fac Fac Upp Upp War Pro Traps Triggered 2 | . . . . . 1 . . 1 . . . . Indirectly . | . . . . . . . . . . . . . Trap Hack Attempts . | . . . . . . . . . . . . . Triggered . | . . . . . . . . . . . . . Disarmed . | . . . . . . . . . . . . . Reprogrammed . | . . . . . . . . . . . . . Reused . | . . . . . . . . . . . . . Traps Extracted . | . . . . . . . . . . . . . Installed . | . . . . . . . . . . . . . Triggered 15 | . . . . . . . . . 1 . 14 . Machines | -11 -10 -10 -10 -9 -8 -7 -6 -5 -5 -5 -5 -4 ---------- Run | Yrd Mat Min Exi Min Mat Fac Fac Fac Upp Upp War Pro Machines Disabled 6 | . . 1 . 1 3 . . . . 1 . . Max in Single Turn 1 | . . 1 . 1 1 . . . . 1 . . Machines Repaired . | . . . . . . . . . . . . . Machines Dismantled . | . . . . . . . . . . . . . Machines Sabotaged . | . . . . . . . . . . . . . Overloaded Fab Kills . | . . . . . . . . . . . . . Hacking | -11 -10 -10 -10 -9 -8 -7 -6 -5 -5 -5 -5 -4 --------- Run | Yrd Mat Min Exi Min Mat Fac Fac Fac Upp Upp War Pro Machines Accessed 10 | . . . 1 . . . . . . . 9 . Terminals . | . . . . . . . . . . . . . Fabricators . | . . . . . . . . . . . . . Repair Stations . | . . . . . . . . . . . . . Recycling Units . | . . . . . . . . . . . . . Scanalyzers . | . . . . . . . . . . . . . Garrison Access . | . . . . . . . . . . . . . Total Hacks 20 | . . . 1 . . . . . . . 19 . Successful 20 | . . . 1 . . . . . . . 19 . Failed . | . . . . . . . . . . . . . Catastrophic . | . . . . . . . . . . . . . Database Lockouts . | . . . . . . . . . . . . . Manual 2 | . . . 1 . . . . . . . 1 . Terminals . | . . . . . . . . . . . . . Fabricators . | . . . . . . . . . . . . . Repair Stations . | . . . . . . . . . . . . . Recycling Units . | . . . . . . . . . . . . . Scanalyzers . | . . . . . . . . . . . . . Garrison Access . | . . . . . . . . . . . . . Terminal Hacks 20 | . . . 1 . . . . . . . 19 . Record 14 | . . . . . . . . . . . 14 . Prototype ID Bank 5 | . . . . . . . . . . . 5 . Derelict Proto ID Bank 1 | . . . 1 . . . . . . . . . Fabricator Hacks . | . . . . . . . . . . . . . Repair Station Hacks . | . . . . . . . . . . . . . Recycling Unit Hacks . | . . . . . . . . . . . . . Scanalyzer . | . . . . . . . . . . . . . Garrison Access Hacks . | . . . . . . . . . . . . . Unauthorized Hacks . | . . . . . . . . . . . . . Terminals . | . . . . . . . . . . . . . Fabricators . | . . . . . . . . . . . . . Repair Stations . | . . . . . . . . . . . . . Recycling Units . | . . . . . . . . . . . . . Scanalyzers . | . . . . . . . . . . . . . Garrison Access . | . . . . . . . . . . . . . Data Cores Recovered . | . . . . . . . . . . . . . Used . | . . . . . . . . . . . . . Hacking Detections . | . . . . . . . . . . . . . Full Trace Events . | . . . . . . . . . . . . . Feedback Events . | . . . . . . . . . . . . . Feedback Blocked . | . . . . . . . . . . . . . Robot Schematics Acquired . | . . . . . . . . . . . . . Robots Built . | . . . . . . . . . . . . . Authchips . | . . . . . . . . . . . . . Time . | . . . . . . . . . . . . . Total Robot Build Rating . | . . . . . . . . . . . . . Part Schematics Acquired . | . . . . . . . . . . . . . Parts Built . | . . . . . . . . . . . . . Authchips . | . . . . . . . . . . . . . Time . | . . . . . . . . . . . . . Total Part Build Rating . | . . . . . . . . . . . . . Parts Repaired . | . . . . . . . . . . . . . Time . | . . . . . . . . . . . . . Parts Recycled . | . . . . . . . . . . . . . Recycled Matter . | . . . . . . . . . . . . . Retrieved Matter . | . . . . . . . . . . . . . Retrieved Components . | . . . . . . . . . . . . . Parts Scanalyzed . | . . . . . . . . . . . . . Part Schematics Acquired . | . . . . . . . . . . . . . Parts Damaged . | . . . . . . . . . . . . . Bothacking | -11 -10 -10 -10 -9 -8 -7 -6 -5 -5 -5 -5 -4 ------------ Run | Yrd Mat Min Exi Min Mat Fac Fac Fac Upp Upp War Pro Used RIF Installer . | . . . . . . . . . . . . . Robots Hacked . | . . . . . . . . . . . . . Non-combat . | . . . . . . . . . . . . . Combat . | . . . . . . . . . . . . . Robot Hacks Applied . | . . . . . . . . . . . . . Relay Couplers Released . | . . . . . . . . . . . . . Fabnet Peak Effective % . | . . . . . . . . . . . . . Robots Rewired 6 | . . . . . . . . . . 1 5 . Allies Hacked . | . . . . . . . . . . . . . Hacks Repelled . | . . . . . . . . . . . . . Allies | -11 -10 -10 -10 -9 -8 -7 -6 -5 -5 -5 -5 -4 -------- Run | Yrd Mat Min Exi Min Mat Fac Fac Fac Upp Upp War Pro Total Allies 6 | . . . . . . . . . . 1 5 . Largest Group 5 | . . . . . . . . . . 1 5 . Highest-Rated Group 266 | . . . . . . . . . . 30 266 . Highest-Rated Ally 68 | . . . . . . . . . . 30 68 . Total Orders . | . . . . . . . . . . . . . Ally Attacks 27 | . . . . . . . . . . 4 23 . Total Damage 1107 | . . . . . . . . . . 116 991 . Kills 2 | . . . . . . . . . . 1 1 . Allies Corrupted . | . . . . . . . . . . . . . Allies Melted . | . . . . . . . . . . . . . Intel | -11 -10 -10 -10 -9 -8 -7 -6 -5 -5 -5 -5 -4 ------- Run | Yrd Mat Min Exi Min Mat Fac Fac Fac Upp Upp War Pro Robot Analysis Total . | . . . . . . . . . . . . . Derelict Logs Recovered 2 | . . . . . . . . . . 2 . . Drone Launches . | . . . . . . . . . . . . . Drone Recoveries . | . . . . . . . . . . . . . Exploration | -11 -10 -10 -10 -9 -8 -7 -6 -5 -5 -5 -5 -4 ------------- Run | Yrd Mat Min Exi Min Mat Fac Fac Fac Upp Upp War Pro Turns Passed 6030 | . 9 311 263 39 630 209 219 227 536 734 2179 674 Spaces Moved 2986 | 1 8 222 208 11 319 120 109 128 303 385 826 346 Core 37 | . . . . . . . . . . . . 37 Treads 2427 | . . . . . 247 120 109 128 303 385 826 309 Legs 522 | 1 8 222 208 11 72 . . . . . . . Wheels . | . . . . . . . . . . . . . Hover . | . . . . . . . . . . . . . Flight . | . . . . . . . . . . . . . Fastest Speed 50 | 120 120 120 120 120 120 166 166 166 166 166 170 50 Average Speed 180 | 120 120 120 120 183 153 166 166 166 166 176 246 160 Slowest Speed 250 | 120 120 120 120 190 190 166 166 166 166 250 250 200 Overloaded Moves . | . . . . . . . . . . . . . Propulsion Burnouts . | . . . . . . . . . . . . . Robots Hopped . | . . . . . . . . . . . . . Cave-ins Triggered . | . . . . . . . . . . . . . Exploration Rate (%) 32 | 2 3 49 59 5 39 3 4 4 50 62 82 63 Regions Visited 12 Branch Regions 7 Pre-discovered Areas 3 | . . 1 . . . . . . . . 2 . Known Exits Taken . | . . . . . . . . . . . . . Unknown Exits Taken 12 | 1 1 1 1 1 1 1 1 1 1 1 1 . Scrap Searched 7 | . . 1 . . . . . . 1 4 . 1 Spaces Dug 13 | . . . . . 12 . . . . . . 1 Terrain Destroyed 147 | . . . . 35 99 . . . . . 2 11 Melee . | . . . . . . . . . . . . . Projectile 24 | . . . . 3 10 . . . . . . 11 AOE 123 | . . . . 32 89 . . . . . 2 . Terrain Rammed . | . . . . . . . . . . . . . Walls Destroyed . | . . . . . . . . . . . . . Machines Disabled . | . . . . . . . . . . . . . Actions | -11 -10 -10 -10 -9 -8 -7 -6 -5 -5 -5 -5 -4 --------- Run | Yrd Mat Min Exi Min Mat Fac Fac Fac Upp Upp War Pro Total 3470 | . 7 248 221 21 431 127 147 140 324 429 965 410 Wait 266 | . . 10 13 . 61 4 36 . 7 18 104 13 Move 2974 | . 7 221 207 10 318 119 108 127 302 384 825 346 Hop . | . . . . . . . . . . . . . Pick Up 32 | . . 3 1 . 11 . 1 4 2 1 5 4 Fast Attach . | . . . . . . . . . . . . . Attach 32 | . . 2 . 2 9 1 2 5 1 1 1 8 Detach 2 | . . . . 1 . . . . . . . 1 Swap 4 | . . 1 . . 3 . . . . . . . Drop 8 | . . 1 . 2 2 . . 1 . . 1 1 Fire 116 | . . 10 . 6 27 3 . 3 12 11 7 37 Melee . | . . . . . . . . . . . . . Ram . | . . . . . . . . . . . . . Kick . | . . . . . . . . . . . . . Crush . | . . . . . . . . . . . . . Escape Stasis . | . . . . . . . . . . . . . Rewire 36 | . . . . . . . . . . 14 22 . Trap . | . . . . . . . . . . . . . Miscellaneous . | . . . . . . . . . . . . . Route ------- -11/Scrapyard -10/Materials -10/Mines (discovered 2 exits: [*Mat] / *Exi) -10/Exiles -9/Mines -8/Materials -7/Factory -6/Factory -5/Factory -5/Upper Caves -5/Upper Caves -5/Warlord -4/Proximity Caves History --------- Turn | Location | Event 1 | -11/Scrapyard | Discovered new exit (range 0) 1 | -11/Scrapyard | Entered Materials 1 | -10/Materials | Discovered new exit (range 7) 10 | -10/Materials | Entered Mines 81 | -10/Mines | Discovered new exit (range 13) 248 | -10/Mines | Learned location of Storage (-7) 308 | -10/Mines | Build established: Mutant 316 | -10/Mines | Deemed a non-threat by the Exiles lab entrance 316 | -10/Mines | Discovered new exit (range 5) 321 | -10/Mines | Entered Exiles 350 | -10/Exiles | Met 8R-AWN 372 | -10/Exiles | Met EX-HEX 404 | -10/Exiles | Met EX-BIN 419 | -10/Exiles | Aligned with FarCom system 420 | -10/Exiles | Given EX-Vault access code 447 | -10/Exiles | Opened EX-Vault 455 | -10/Exiles | Found Firepult 478 | -10/Exiles | Warned to stay clear of 0b10 Research branches 497 | -10/Exiles | Exiles lab attacked by MAIN.C 564 | -10/Exiles | Discovered new exit (range 14) 584 | -10/Exiles | Left Exiles lab with Firepult 584 | -10/Exiles | Entered Mines 599 | -9/Mines | Met a Derelict bent on vengeance 599 | -9/Mines | Discovered new exit (range 10) 623 | -9/Mines | Destroyed 7 combat bots 623 | -9/Mines | Entered Materials 623 | -8/Materials | Evolved 4 slots: Utility x3, Weapon x1 1085 | -8/Materials | Build established: Skirmisher 1220 | -8/Materials | Discovered new exit (range 14) 1253 | -8/Materials | Entered Factory 1253 | -7/Factory | Evolved 2 slots: Power x1, Propulsion x1 1437 | -7/Factory | Discovered new exit (range 16) 1462 | -7/Factory | Entered another Factory area 1462 | -6/Factory | Evolved 2 slots: Utility x2 1672 | -6/Factory | Discovered new exit (range 5) 1681 | -6/Factory | Entered another Factory area 1681 | -5/Factory | Evolved 2 slots: Utility x2 1884 | -5/Factory | Discovered new exit (range 11) 1908 | -5/Factory | Entered Upper Caves 2203 | -5/Upper Caves | Build established: Mutant 2424 | -5/Upper Caves | Discovered new exit (range 12) 2444 | -5/Upper Caves | Entered another Upper Caves area 2470 | -5/Upper Caves | Attracted the attention of an 0b10 outpost 2583 | -5/Upper Caves | Learned Factory terminal intel 2685 | -5/Upper Caves | Learned 8 Factory zone layouts 3166 | -5/Upper Caves | Discovered new exit (range 6) 3178 | -5/Upper Caves | Entered Warlord 3241 | -5/Warlord | Discovered new exit (range 14) 3932 | -5/Warlord | Received a Watcher feed algorithm from an ecstatic Tinkerer 4030 | -5/Warlord | Build established: Commander-Mutant 4102 | -5/Warlord | Learned location of Quarantine (-2) 4102 | -5/Warlord | Learned Quarantine trap positions 4102 | -5/Warlord | Learned location of Testing (-3) 4104 | -5/Warlord | Learned 4 Quarantine zone layouts 4104 | -5/Warlord | Learned 4 Armory zone layouts 4107 | -5/Warlord | Learned Armory repair station intel 4107 | -5/Warlord | Learned Armory scanalyzer intel 4107 | -5/Warlord | Learned Armory recycling unit intel 4107 | -5/Warlord | Learned Research security intel 4478 | -5/Warlord | Warlord's base attacked by MAIN.C 4626 | -5/Warlord | Met Warlord 4828 | -5/Warlord | Warlord forces counterattacked 5009 | -5/Warlord | Spotted Striker 5020 | -5/Warlord | Spotted Executioner 5021 | -5/Warlord | Allies destroyed Striker 5066 | -5/Warlord | Lost 4 allies 5070 | -5/Warlord | Spotted B-86 Titan 5074 | -5/Warlord | Destroyed B-86 Titan 5124 | -5/Warlord | Spotted Striker 5126 | -5/Warlord | Destroyed Striker 5129 | -5/Warlord | Destroyed B-86 Titan 5153 | -5/Warlord | Warlord base infiltrated, sounded retreat 5154 | -5/Warlord | Destroyed 8 combat bots 5278 | -5/Warlord | Spotted Striker 5283 | -5/Warlord | Spotted Striker 5318 | -5/Warlord | Lost 3 parts (1p1u1w) 5318 | -5/Warlord | Lost 12 allies 5328 | -5/Warlord | Build established: Mutant 5357 | -5/Warlord | Entered Proximity Caves 5462 | -4/Proximity Caves | Spotter reported a threat 5789 | -4/Proximity Caves | Spotter reported a threat 5834 | -4/Proximity Caves | Lost 4 parts (1p2n1w) 5842 | -4/Proximity Caves | Spotter reported a threat 5848 | -4/Proximity Caves | Attracted the attention of an 0b10 checkpoint 5888 | -4/Proximity Caves | Lost 4 parts (3u1w) 5952 | -4/Proximity Caves | Spotted B-86 Titan 5993 | -4/Proximity Caves | Core integrity fell below 50% 6031 | -4/Proximity Caves | Self-destructed Last Messages --------------- 05874_ Neutrino Core fries itself beyond repair. 05879_ S-27 Virus destroyed. 05881_ Acquired 61 matter. 05884_ Autogun fries itself beyond repair. 05894_ Acquired 20 matter. 05925_ N-01 Spotter is scanning... 05925_ N-01 Spotter suffers critical hit (Blast). 05925_ Destroyed Adv. Visual Processing Unit. 05925_ N-01 Spotter destroyed. 05953_ Arm. Medium Treads destroyed. 05953_ Antimatter Reactor destroyed. 05953_ Critical hit (Blast). 05955_ Acquired 3 matter. 05964_ Slug penetrates Wall. 05985_ Lgt. Treads destroyed. 05988_ Penetrated by Slug. 06009_ Imp. Terrain Scan Processor destroyed. 06023_ Acquired 7 matter. 06025_ Slug penetrates Wall. 06026_ Dropped Sml. Storage Unit. Map ----- +----------------------------------------------------+ | ?#?#?# ####???????????#???????????? | | ###### ##??????##????????#??#?????? | | # ### ## #?#??????????#???#?????? | | ### ##????????????#????????? | | == ### #####???????#?#??#????? | | #?# ##??#?#???##??????? | | ## #### ? #??#???#?????#????? | | #?###??#? ?## #????#????????????? | | #???##??# #### #####?????????????? | | % #####?### #### # ##?????#?#?????? | | % ## ###?# #### # #???###?????#?? | | # ### ##### #### ######?????????? | | ## ### ###?## ###???#????#????? | | "##### ### ##?## ### #????#??????????? | | "####### #### ### #?##?##???#?????? | | ###?#?## ###% ## #???????????????? | | #?#?## ## #?????????#???#?? | | ######## ## #???????????????? | | " #####??## #### ## ##????#?????????? | | # ###?#?#?# #### ! "" ###????#????????? | | ?## #####?## ##?## ## "" #???##??????????? | | ##?# #??# ##?#?## ####" #???#???#???????? | | #???# ?#?# ##?#?### ###" B#?##??????#?????? | | ### ??#?## ##????#;; ##?#;BB##?#?#?#????????? | | ? ?? ? ?????# ###?####; #; #??#????????????? | | ? ????? ????##% ####??# @ #???????????????? | | ##??? #?###" ######% ##?#????#????????? | | ???## ???#?## #???????????????? | | ? ????? ?## ##;; # #??????????????? | | ????#???? ### ## ; ## ###?????????????? | | ???#?#?##??######### # #?####???????????????? | | ??###???##?#?##????### #????????????????????? | | ????#???#??#??#??#?### ##?#?#???????????????? | | ??????##??#?#?#?####?# #???#????????????????? | | ???????#???#?????#?##########????????????????????? | | ????#?????#??#?#???#????#?#??????????????????????? | | ??????????#???#?#????????##??#?#?????????????????? | | ?????????##????#?#?##??##????????????????????????? | | ???????????#?#?????#??#??????????????????????????? | | ??????#???#?#?#???#?#???#?#??????????????????????? | | ??????????#?##??####??????##?????????????????????? | | ????????????????##?????#?????????????????????????? | | ????????????????????#????#???????????????????????? | | ?????????????????????????????????????????????????? | | ?????????????????????????????????????????????????? | | ?????????????????????????????????????????????????? | | | | | | | | | +----------------------------------------------------+ Best States ------------- Heat Dissipation 83 Coolant Potential 50 Energy Generation 24 Energy Capacity 325 Matter Stores 300 Matter Capacity 300 Sight Range 16 Terrain Scan Range 16 Terrain Scan Density 110 Armor Coverage 225 Point Defense Rating 80 Evasion (%) 55 Targeting Accuracy 6 Target Analysis 11 Recoil Reduction 3 Defensive Hacking 14 Item Schematics ----------------- None Robot Schematics ------------------ None Fabricated ------------ Nothing Alien Tech Used ----------------- None Achievements -------------- Charge!!! Pyromaniac Challenges ------------ None Game ------ Seed CorruptionSpectralPerforator Manual? 0 Play Time 00:31:07 Cumulative 71.5 hours Start 2024.07.20 @ 20:53:09 End 2024.07.20 @ 21:24:07 Sessions 1 Manual Loads 0 Difficulty Rogue Special Mode None Game No. 124 Rogue 124 Adventurer 0 Explorer 0 Win Type - Total 0 Types 0/0/0/0/0/0/0/0/0 Lore% 49 Gallery% 57 Achievement% 42 Wizard Run 0 Options --------- Layout 1 ASCII 0 Keyboard 0 Movement Mouse Keybinds 0 Fullscreen 2 Font 20/SmallcapsGlow Map View 54x42 Zoom Use 0% Tactical HUD 1 Map Filters NONE Filters NONE Steam 0 RUN: f7f08998-e584-4e2f-9f86-693d230992f4